bitfinex/quotes_BTCUSD_20240731
["timestamp","ask_amount","ask_price","bid_price","bid_amount"]
[1722386055098,0.0085,66345.0,66344.0,1.68275864]
[1722386055299,0.0085,66345.0,66344.0,1.67375864]
[1722386055502,0.0085,66345.0,66344.0,1.38629964]
[1722386055740,0.0085,66345.0,66344.0,1.40029964]
[1722386056066,0.0085,66345.0,66344.0,1.38629964]
[1722386056502,0.0085,66345.0,66344.0,1.40029964]
[1722386056704,0.0085,66345.0,66344.0,0.804647]
[1722386056908,0.0085,66345.0,66344.0,0.466188]
[1722386057151,0.0851,66345.0,66344.0,0.767647]
[1722386057575,0.0851,66345.0,66344.0,0.466188]
[1722386057868,0.0851,66345.0,66344.0,0.5429539]
[1722386058055,0.0851,66345.0,66344.0,0.8444129]
[1722386058272,0.0085,66345.0,66344.0,0.8584129]
[1722386058464,0.0085,66345.0,66344.0,1.1598719]
[1722386058935,0.0085,66345.0,66344.0,0.8584129]
[1722386059743,0.0085,66345.0,66344.0,0.781647]
[1722386059908,0.0085,66345.0,66344.0,0.480188]
[1722386060124,0.0085,66345.0,66344.0,0.781647]
[1722386060334,0.0085,66345.0,66344.0,0.480188]
[1722386060937,0.0909,66345.0,66344.0,0.028]
[1722386061133,0.623791,66345.0,66344.0,0.028]
[1722386061350,1.236699,66345.0,66344.0,0.028]
[1722386061555,1.32192223,66345.0,66344.0,0.028]
[1722386062123,1.62337623,66345.0,66344.0,0.014]
[1722386062328,0.0762,66326.0,66322.0,0.0015542]
[1722386062523,0.0762,66326.0,66306.0,0.365241]
[1722386062524,0.0762,66326.0,66321.0,0.301562]
[1722386062788,0.0762,66326.0,66316.0,0.301585]
[1722386062993,0.0762,66326.0,66306.0,0.365241]
[1722386062994,0.150786,66319.0,66318.0,0.0015542]
[1722386063202,0.211986,66319.0,66318.0,0.0015542]
[1722386063404,0.211986,66319.0,66307.0,0.1523652]
[1722386063405,0.150788,66318.0,66307.0,0.1523652]
[1722386063607,0.81760802,66318.0,66307.0,0.1523672]
[1722386063948,0.81760802,66318.0,66306.0,0.302542]
[1722386063949,0.452365,66318.0,66306.0,0.302542]
[1722386064161,0.150788,66318.0,66313.0,0.150798]
[1722386064366,0.150788,66318.0,66309.0,0.301616]
[1722386064367,0.150788,66318.0,66312.0,0.150801]
[1722386064567,0.452365,66318.0,66309.0,0.301615]
[1722386064767,0.452365,66318.0,66311.0,0.150803]
[1722386064977,0.753942,66318.0,66317.0,0.01118151]
[1722386065182,0.753942,66318.0,66317.0,0.02518151]
[1722386065183,1.116719,66318.0,66317.0,0.02518151]
[1722386065411,1.18088651,66318.0,66317.0,0.02518151]
[1722386066146,1.18088651,66318.0,66317.0,0.01418151]
[1722386066549,1.18347924,66318.0,66317.0,0.00018151]
[1722386066776,1.119719,66318.0,66317.0,0.00018151]
[1722386067073,1.18047926,66318.0,66317.0,0.00018151]
[1722386067430,1.124719,66318.0,66317.0,0.00118151]
[1722386067912,1.116719,66318.0,66317.0,0.00018151]
[1722386068071,0.815142,66318.0,66317.0,0.00018151]
[1722386068281,0.819142,66318.0,66317.0,0.00018151]
[1722386068472,0.819142,66318.0,66317.0,0.00218151]
[1722386069039,0.819142,66318.0,66317.0,0.00418151]
[1722386070813,0.517565,66318.0,66317.0,0.00418151]
[1722386072827,0.004,66318.0,66317.0,0.00418151]
[1722386073043,0.154788,66318.0,66317.0,0.00418151]
[1722386073249,0.772612,66318.0,66317.0,0.00418151]
[1722386073451,0.818542,66318.0,66317.0,0.00418151]
[1722386073654,1.116119,66318.0,66317.0,0.00418151]
[1722386073865,1.129119,66318.0,66317.0,0.00418151]
[1722386074278,1.116119,66318.0,66317.0,0.00418151]
[1722386074684,1.124119,66318.0,66317.0,0.00518151]
[1722386074886,1.124119,66318.0,66317.0,0.00118151]
[1722386075756,1.210219,66318.0,66317.0,0.00118151]
[1722386075972,1.200219,66318.0,66317.0,0.01018151]
[1722386076602,1.202219,66318.0,66317.0,0.00918151]
[1722386076822,1.305219,66318.0,66317.0,0.00018151]
[1722386077506,1.302219,66318.0,66317.0,0.00018151]
[1722386077784,1.302219,66318.0,66317.0,0.00118151]
[1722386077785,1.790996,66318.0,66317.0,0.00118151]
[1722386078056,1.85570076,66318.0,66317.0,0.00118151]
[1722386078287,2.15827776,66318.0,66317.0,0.00118151]
[1722386078516,2.15727776,66318.0,66317.0,0.00118151]
[1722386079027,2.15827776,66318.0,66317.0,0.00018151]
[1722386079290,1.84870076,66318.0,66317.0,0.00018151]
[1722386079548,1.85570076,66318.0,66317.0,0.00118151]
[1722386079795,1.83570076,66318.0,66317.0,0.00118151]
[1722386080031,1.82970076,66318.0,66317.0,0.00018151]
[1722386080312,1.82970076,66318.0,66317.0,0.00118151]
[1722386080313,1.83770076,66318.0,66317.0,0.00118151]
[1722386080573,1.82770076,66318.0,66317.0,0.00118151]
[1722386080819,1.613796,66318.0,66317.0,0.00118151]
[1722386081858,1.633796,66318.0,66317.0,0.00118151]
[1722386082471,1.69850651,66318.0,66317.0,0.00118151]
[1722386082619,1.633796,66318.0,66317.0,0.00118151]
[1722386082819,1.70742559,66318.0,66317.0,0.00118151]
[1722386083039,1.70742613,66318.0,66317.0,0.00118151]
[1722386083463,1.70742541,66318.0,66317.0,0.00118151]
[1722386083872,1.64261272,66318.0,66317.0,0.00118151]
[1722386084084,1.70708908,66318.0,66317.0,0.00118151]
[1722386085116,1.70704592,66318.0,66317.0,0.00118151]
[1722386085517,2.16782292,66318.0,66317.0,0.00118151]
[1722386085731,4.02359992,66318.0,66317.0,5.1e-07]
[1722386085940,4.02359992,66318.0,66306.0,0.000913]
[1722386085941,1.244894,66307.0,66306.0,0.000913]
[1722386086149,3.6303812,66307.0,66306.0,0.000913]
[1722386086571,3.68664365,66307.0,66306.0,0.000913]
[1722386086780,3.44885119,66307.0,66306.0,0.000913]
[1722386087018,3.32815554,66307.0,66306.0,0.000913]
[1722386087211,3.62815554,66307.0,66306.0,0.000913]
[1722386088094,3.31815554,66307.0,66306.0,0.000913]
[1722386088489,3.34215554,66307.0,66306.0,0.000913]
[1722386088758,3.32215554,66307.0,66306.0,0.000913]
[1722386088931,3.32815554,66307.0,66306.0,0.000913]
[1722386089334,3.34815554,66307.0,66306.0,0.001913]
[1722386089547,3.34215554,66307.0,66306.0,0.000913]
[1722386089752,3.278321,66307.0,66306.0,0.000913]
[1722386089910,3.33508838,66307.0,66306.0,0.001913]
[1722386090112,3.34908838,66307.0,66306.0,0.001913]
[1722386090361,3.284321,66307.0,66306.0,0.001913]
[1722386091526,3.29331653,66307.0,66306.0,0.001913]
[1722386093541,3.45631291,66307.0,66306.0,0.001913]
[1722386096118,3.44231291,66307.0,66306.0,0.001913]
[1722386096291,3.45031291,66307.0,66306.0,0.000913]
[1722386096624,3.45631291,66307.0,66306.0,0.001913]
[1722386097034,3.43631291,66307.0,66306.0,0.001913]
[1722386098037,3.45631291,66307.0,66306.0,0.001913]
[1722386098260,3.44631291,66307.0,66306.0,0.001913]
[1722386098478,3.38269059,66307.0,66306.0,0.001913]
[1722386098678,3.43828715,66307.0,66306.0,0.001913]
[1722386098885,3.4582874,66307.0,66306.0,0.001913]
[1722386100389,3.4382874,66307.0,66306.0,0.001913]
[1722386100612,3.45869656,66307.0,66306.0,0.001913]
[1722386101027,2.92976956,66307.0,66306.0,0.001913]
[1722386101235,2.10306878,66307.0,66306.0,0.001913]
[1722386101440,1.34000625,66307.0,66306.0,0.516959]
[1722386101647,1.2742,66307.0,66306.0,0.516959]
[1722386101863,1.2742,66307.0,66306.0,0.591959]
[1722386102086,0.02,66307.0,66306.0,0.89359]
[1722386102282,0.006,66307.0,66306.0,0.591959]
[1722386102494,0.4688,66319.0,66306.0,0.138513]
[1722386102707,0.014,66307.0,66306.0,0.89959]
[1722386103162,0.014,66307.0,66306.0,0.89259]
[1722386103373,0.014,66307.0,66306.0,1.208221]
[1722386103789,0.014,66307.0,66306.0,1.194221]
[1722386104016,0.014,66307.0,66306.0,1.3276431]
[1722386104429,0.4688,66319.0,66306.0,1.3276431]
[1722386104634,0.4688,66319.0,66318.0,0.0608]
[1722386104839,0.98729488,66319.0,66318.0,0.0015542]
[1722386105046,0.68572288,66319.0,66318.0,0.0015542]
[1722386105249,0.98729488,66319.0,66318.0,0.0015542]
[1722386105655,0.15079,66318.0,66313.0,0.1394]
[1722386105869,0.15079,66318.0,66313.0,0.290199]
[1722386106064,0.15079,66318.0,66314.0,0.0015542]
[1722386106313,0.15079,66318.0,66314.0,0.1523512]
[1722386106485,0.07534716,66323.0,66314.0,0.1523512]
[1722386106486,0.150786,66319.0,66314.0,0.1523512]
[1722386106691,0.00180152,66315.0,66314.0,0.1523512]
[1722386106980,0.00180152,66315.0,66314.0,0.0015542]
[1722386108020,0.00180152,66315.0,66313.0,0.1394]
[1722386108185,0.00180152,66315.0,66314.0,0.0015542]
[1722386108389,0.05249554,66315.0,66314.0,0.0015542]
[1722386108594,0.00180152,66315.0,66314.0,0.0095542]
[1722386108790,0.00180152,66315.0,66314.0,0.0015542]
[1722386109206,0.00180152,66315.0,66314.0,0.4659462]
[1722386109379,0.00280152,66315.0,66314.0,0.765987]
[1722386109790,0.00280152,66315.0,66314.0,0.903687]
[1722386111484,0.00280152,66315.0,66314.0,0.97315636]
[1722386111943,0.00280152,66315.0,66314.0,0.903687]
[1722386113729,0.00280152,66315.0,66314.0,1.205282]
[1722386116228,0.00280152,66315.0,66314.0,1.506877]
[1722386116398,0.00280152,66315.0,66314.0,1.517877]
[1722386116819,0.00280152,66315.0,66314.0,1.531877]
[1722386117031,0.00180152,66315.0,66314.0,1.531877]
[1722386117181,0.00180152,66315.0,66314.0,1.68257132]
[1722386117392,0.00280152,66315.0,66314.0,1.68457132]
[1722386121425,0.00280152,66315.0,66314.0,1.38297632]
[1722386126433,0.00280152,66315.0,66314.0,1.83520436]
[1722386128259,0.00280152,66315.0,66314.0,1.209282]
[1722386134358,0.00280152,66315.0,66314.0,1.232282]
[1722386142732,0.00280152,66315.0,66314.0,0.166797]
[1722386142963,0.00280152,66315.0,66314.0,0.468392]
[1722386143196,0.02254811,66315.0,66314.0,0.468392]
[1722386143425,0.00280152,66315.0,66314.0,0.468392]
[1722386145062,0.00280152,66315.0,66314.0,0.469305]
[1722386145867,0.00280152,66315.0,66314.0,0.7709]
[1722386146280,0.00280152,66315.0,66314.0,0.469305]
[1722386147560,0.00280152,66315.0,66314.0,0.7709]
[1722386148772,0.00280152,66315.0,66314.0,0.469305]
[1722386149633,0.02255233,66315.0,66314.0,0.469305]
[1722386152194,0.02255233,66315.0,66314.0,0.8925225]
[1722386152987,0.00280152,66315.0,66314.0,0.8925225]
[1722386154510,0.00262003,66315.0,66314.0,0.8925225]
[1722386156850,0.00262003,66315.0,66314.0,0.469305]
[1722386157462,0.02235309,66315.0,66314.0,0.469305]
[1722386157661,0.00262003,66315.0,66314.0,0.469305]
[1722386159000,0.02235309,66315.0,66314.0,0.469305]
[1722386159201,0.00262003,66315.0,66314.0,0.469305]
[1722386159602,0.51720503,66315.0,66314.0,0.016913]
[1722386159848,0.67176488,66315.0,66314.0,0.016913]
[1722386160028,0.60134189,66315.0,66314.0,0.016913]
[1722386160352,0.90293189,66315.0,66314.0,0.016913]
[1722386160578,0.90293189,66315.0,66314.0,0.002913]
[1722386160579,0.90371205,66315.0,66314.0,0.002913]
[1722386160922,0.90371207,66315.0,66314.0,0.011913]
[1722386161123,0.90371207,66315.0,66314.0,0.002913]
[1722386161322,0.90289356,66315.0,66314.0,0.000913]
[1722386161524,0.90289356,66315.0,66314.0,0.002913]
[1722386161525,0.90389356,66315.0,66314.0,0.002913]
[1722386162297,0.90289356,66315.0,66314.0,0.000913]
[1722386162613,0.90389356,66315.0,66314.0,0.012913]
[1722386162930,0.60237026,66315.0,66314.0,0.012913]
[1722386163734,0.60237026,66315.0,66314.0,0.002913]
[1722386163994,0.30078026,66315.0,66314.0,0.002913]
[1722386164139,0.30078026,66315.0,66314.0,0.013913]
[1722386164354,0.14998526,66315.0,66314.0,0.013913]
[1722386164558,0.29978026,66315.0,66314.0,0.011913]
[1722386164947,0.30078026,66315.0,66314.0,0.013913]
[1722386165151,0.60237026,66315.0,66314.0,0.013913]
[1722386165522,0.7151877,66315.0,66314.0,0.013913]
[1722386166549,0.41359811,66315.0,66314.0,0.013913]
[1722386166775,0.41359811,66315.0,66314.0,0.16471]
[1722386166776,0.17803846,66315.0,66314.0,0.16471]
[1722386166984,0.09021813,66315.0,66314.0,0.466305]
[1722386167192,0.09021813,66315.0,66314.0,0.5570963]
[1722386167193,0.02252973,66315.0,66314.0,0.5570963]
[1722386167643,0.02252973,66315.0,66314.0,0.466305]
[1722386167841,0.09021813,66315.0,66314.0,0.466305]
[1722386168638,0.09021813,66315.0,66314.0,0.013913]
[1722386168639,0.08925106,66315.0,66314.0,0.013913]
[1722386168852,0.15455106,66315.0,66314.0,0.013913]
[1722386169086,0.26736891,66315.0,66314.0,0.013913]
[1722386169326,0.15455106,66315.0,66314.0,0.013913]
[1722386169544,0.24479087,66315.0,66314.0,0.013913]
[1722386169806,0.08782973,66315.0,66314.0,0.013913]
[1722386170066,0.15435047,66315.0,66314.0,0.013913]
[1722386170315,0.23862473,66315.0,66314.0,0.013913]
[1722386170547,0.30514442,66315.0,66314.0,0.013913]
[1722386170779,0.15434942,66315.0,66314.0,0.013913]
[1722386171847,0.08904942,66315.0,66314.0,0.16471]
[1722386172032,0.15672675,66315.0,66314.0,0.16471]
[1722386172158,0.09020706,66315.0,66314.0,0.013913]
[1722386172364,0.08908481,66315.0,66314.0,0.013913]
[1722386172568,0.15676487,66315.0,66314.0,0.013913]
[1722386172776,0.15676487,66315.0,66314.0,0.16471]
[1722386172994,0.02252973,66315.0,66314.0,0.16471]
[1722386173393,0.02252973,66315.0,66314.0,0.9553318]
[1722386173611,0.02252973,66315.0,66314.0,0.9087]
[1722386173779,0.00280152,66315.0,66314.0,0.9087]
[1722386173987,0.0704819,66315.0,66314.0,0.9087]
[1722386174401,0.0704819,66315.0,66314.0,0.607105]
[1722386174815,0.0899666,66315.0,66314.0,0.607105]
[1722386175017,0.08869498,66315.0,66314.0,0.466305]
[1722386175222,0.17893569,66315.0,66314.0,0.16471]
[1722386175412,0.17893569,66315.0,66314.0,0.466305]
[1722386175851,0.08869519,66315.0,66314.0,0.466305]
[1722386175977,0.15640313,66315.0,66314.0,0.8588209]
[1722386176173,0.02228622,66315.0,66314.0,0.8588209]
[1722386176386,0.08880334,66315.0,66314.0,0.8588209]
[1722386176598,0.06931864,66315.0,66314.0,0.7679]
[1722386176798,0.08880334,66315.0,66314.0,0.7679]
[1722386178751,0.08963334,66315.0,66314.0,0.7679]
[1722386178954,0.15734242,66315.0,66314.0,0.7679]
[1722386179600,0.15730062,66315.0,66314.0,0.7679]
[1722386179955,0.15730257,66315.0,66314.0,0.7679]
[1722386180478,0.08958896,66315.0,66314.0,0.7679]
[1722386181716,0.08959398,66315.0,66314.0,0.7679]
[1722386182643,0.08959398,66315.0,66314.0,0.013913]
[1722386182644,0.02311622,66315.0,66314.0,0.013913]
[1722386182774,0.71602656,66315.0,66314.0,0.013913]
[1722386182974,1.58110656,66315.0,66314.0,0.013913]
[1722386183197,2.09274799,66315.0,66314.0,0.013913]
[1722386183799,1.56940647,66315.0,66314.0,0.013913]
[1722386184023,1.67600647,66315.0,66314.0,0.002913]
[1722386184225,1.66600647,66315.0,66314.0,0.002913]
[1722386184454,1.66600647,66315.0,66314.0,0.005913]
[1722386184588,1.65500647,66315.0,66314.0,0.003913]
[1722386184795,1.56940647,66315.0,66314.0,0.003913]
[1722386184996,1.65600647,66315.0,66314.0,0.003913]
[1722386185203,1.57940647,66315.0,66314.0,0.003913]
[1722386185463,1.59940647,66315.0,66314.0,0.003913]
[1722386185910,1.49467156,66315.0,66314.0,0.003913]
[1722386187565,1.39431825,66315.0,66314.0,0.003913]
[1722386187889,1.49455492,66315.0,66314.0,0.003913]
[1722386188393,1.39431825,66315.0,66314.0,0.003913]
[1722386188596,0.79113825,66315.0,66314.0,0.003913]
[1722386188804,0.08975325,66315.0,66314.0,0.003913]
[1722386189012,0.17391122,66315.0,66314.0,0.003913]
[1722386189220,0.54224478,66315.0,66314.0,0.003913]
[1722386189424,0.47550122,66315.0,66314.0,0.003913]
[1722386189598,0.54165264,66315.0,66314.0,0.003913]
[1722386189845,0.24006264,66315.0,66314.0,0.003913]
[1722386191686,0.08926764,66315.0,66314.0,0.003913]
[1722386191851,0.08926764,66315.0,66314.0,0.064813]
[1722386192240,0.17953328,66315.0,66314.0,0.2752121]
[1722386192464,0.08938612,66315.0,66314.0,0.2752121]
[1722386192691,0.17953328,66315.0,66314.0,0.2752121]
[1722386192926,0.17953328,66315.0,66314.0,0.21561]
[1722386193137,0.17953328,66315.0,66314.0,0.21261]
[1722386193138,0.02311622,66315.0,66314.0,0.21261]
[1722386193387,0.01806136,66315.0,66314.0,0.8158]
[1722386193624,0.01706136,66315.0,66314.0,0.6448266]
[1722386193866,0.00263152,66315.0,66314.0,0.6448266]
[1722386194117,0.00363152,66315.0,66314.0,0.6468266]
[1722386194370,0.01806347,66315.0,66314.0,0.6468266]
[1722386194652,0.01706347,66315.0,66314.0,0.6448266]
[1722386194893,0.01806347,66315.0,66314.0,0.063813]
[1722386195114,0.16885847,66315.0,66314.0,0.002913]
[1722386195315,0.0839667,66315.0,66314.0,0.002913]
[1722386195525,0.08387429,66315.0,66314.0,0.002913]
[1722386195724,0.08387429,66315.0,66314.0,0.15371]
[1722386196131,0.08387429,66315.0,66314.0,0.002913]
[1722386196333,0.08387429,66315.0,66314.0,0.016913]
[1722386196537,0.08387429,66315.0,66314.0,0.15371]
[1722386196735,0.08287429,66315.0,66314.0,0.453305]
[1722386196987,0.08287429,66315.0,66314.0,0.467305]
[1722386197160,0.08387429,66315.0,66314.0,0.469305]
[1722386197366,0.08387429,66315.0,66314.0,0.5608963]
[1722386197840,0.08287429,66315.0,66314.0,0.5588963]
[1722386197989,0.08387429,66315.0,66314.0,0.5608963]
[1722386198598,0.17406374,66315.0,66314.0,0.5608963]
[1722386198791,0.17449235,66315.0,66314.0,0.5608963]
[1722386199182,0.01806347,66315.0,66314.0,0.5608963]
[1722386199386,0.08571611,66315.0,66314.0,0.5608963]
[1722386199624,0.01806347,66315.0,66314.0,0.5608963]
[1722386200574,0.01806347,66315.0,66314.0,0.8624913]
[1722386200768,0.01806347,66315.0,66314.0,0.9454913]
[1722386201002,0.01806347,66315.0,66314.0,1.0115913]
[1722386202010,0.01806347,66315.0,66314.0,0.92]
[1722386205217,0.01806347,66315.0,66314.0,0.618405]
[1722386205420,0.08575564,66315.0,66314.0,0.618405]
[1722386205623,0.07132369,66315.0,66314.0,0.618405]
[1722386205849,0.08577248,66315.0,66314.0,0.618405]
[1722386207000,0.08577248,66315.0,66314.0,0.92]
[1722386207125,0.08577248,66315.0,66314.0,1.3135963]
[1722386207126,0.01808031,66315.0,66314.0,1.3135963]
[1722386207336,0.01808031,66315.0,66314.0,1.0986013]
[1722386207337,0.00363152,66315.0,66314.0,1.0986013]
[1722386209246,0.00363152,66315.0,66314.0,1.0120013]
[1722386212683,0.00363152,66315.0,66314.0,1.02111115]
[1722386213168,0.00363152,66315.0,66314.0,1.34570615]
[1722386213928,0.00263152,66315.0,66314.0,1.242595]
[1722386214130,0.00263152,66315.0,66314.0,1.219595]
[1722386214541,0.00363152,66315.0,66314.0,1.221595]
[1722386214947,0.00363152,66315.0,66314.0,0.906]
[1722386215752,0.00363152,66315.0,66314.0,1.05669432]
[1722386215951,0.00363152,66315.0,66314.0,1.35628932]
[1722386215952,0.00263152,66315.0,66314.0,1.35628932]
[1722386216419,0.00363152,66315.0,66314.0,1.39028932]
[1722386216799,0.00363152,66315.0,66314.0,1.40428932]
[1722386217220,0.00363152,66315.0,66314.0,1.69188432]
[1722386217775,0.00363152,66315.0,66314.0,1.70588432]
[1722386217992,0.00363152,66315.0,66314.0,1.69188432]
[1722386218377,0.00263152,66315.0,66314.0,1.69488432]
[1722386219022,0.00263152,66315.0,66314.0,1.84551736]
[1722386219802,0.00263152,66315.0,66314.0,1.85951736]
[1722386220180,0.00263152,66315.0,66314.0,1.86951736]
[1722386220349,0.00263152,66315.0,66314.0,2.09371116]
[1722386220549,0.00263152,66315.0,66314.0,2.09371099]
[1722386220959,0.00263152,66315.0,66314.0,1.97151736]
[1722386221180,0.00263152,66315.0,66314.0,2.09376628]
[1722386221582,0.00263152,66315.0,66314.0,2.41536128]
[1722386222167,0.00083,66317.0,66316.0,1.224551]
[1722386222442,0.00083,66317.0,66316.0,1.92401896]
[1722386222612,0.00083,66317.0,66316.0,2.10851896]
[1722386222800,0.00083,66317.0,66316.0,2.11851896]
[1722386223200,0.00083,66317.0,66316.0,2.14051896]
[1722386223399,0.00083,66317.0,66316.0,2.59279928]
[1722386223828,0.00083,66317.0,66316.0,2.60679928]
[1722386224178,0.00083,66317.0,66316.0,2.62079928]
[1722386225644,0.00083,66317.0,66316.0,2.31921328]
[1722386225842,0.00083,66317.0,66316.0,2.28721328]
[1722386226041,0.00083,66317.0,66316.0,2.16496436]
[1722386226563,0.00083,66317.0,66316.0,2.15096436]
[1722386226762,0.00083,66317.0,66316.0,2.13696436]
[1722386227006,0.00083,66317.0,66316.0,2.15096436]
[1722386227381,0.00083,66317.0,66316.0,2.13696436]
[1722386227766,0.00083,66317.0,66316.0,1.93446436]
[1722386228370,0.00083,66317.0,66316.0,1.94846436]
[1722386228928,0.00083,66317.0,66316.0,1.35724532]
[1722386229136,0.053997,66322.0,66316.0,0.329586]
[1722386229344,0.053997,66322.0,66318.0,0.301575]
[1722386229680,0.54414716,66331.0,66321.0,0.301563]
[1722386229681,0.4688,66331.0,66321.0,0.301563]
[1722386229869,0.4688,66331.0,66319.0,0.0636]
[1722386229870,0.06577884,66330.0,66327.0,0.150767]
[1722386230097,0.4688,66331.0,66327.0,0.150767]
[1722386230245,0.4688,66331.0,66328.0,0.150765]
[1722386230452,0.4688,66331.0,66319.0,0.0636]
[1722386230453,0.4688,66331.0,66327.0,0.150767]
[1722386230804,0.619559,66331.0,66326.0,0.15077]
[1722386230954,0.619559,66331.0,66327.0,0.002]
[1722386231158,0.619559,66331.0,66327.0,0.011]
[1722386231378,0.770319,66331.0,66327.0,0.011]
[1722386231571,0.150765,66328.0,66327.0,0.002]
[1722386231765,0.150765,66328.0,66327.0,0.01]
[1722386231766,0.51787423,66328.0,66327.0,0.01]
[1722386231977,0.81940523,66328.0,66327.0,0.01]
[1722386232168,0.81940523,66328.0,66327.0,0.008]
[1722386232169,0.96830523,66328.0,66327.0,0.008]
[1722386232581,0.96830523,66328.0,66327.0,0.009]
[1722386233182,1.26983623,66328.0,66327.0,0.001]
[1722386233511,1.26983623,66328.0,66327.0,0.005]
[1722386233512,0.96830523,66328.0,66327.0,0.005]
[1722386233734,0.96830523,66328.0,66327.0,0.004]
[1722386233945,0.96830523,66328.0,66314.0,0.3040602]
[1722386233946,0.150789,66318.0,66316.0,0.0015542]
[1722386234165,0.30157,66320.0,66314.0,0.000913]
[1722386234377,0.15079,66318.0,66314.0,0.000913]
[1722386234583,0.15079,66318.0,66314.0,0.151709]
[1722386234788,0.150784,66320.0,66315.0,0.150795]
[1722386235028,0.142,66321.0,66316.0,0.0453308]
[1722386235257,0.142,66321.0,66314.0,0.000913]
[1722386235258,0.0675968,66323.0,66314.0,0.066613]
[1722386235467,0.0795,66326.0,66315.0,0.0451112]
[1722386235665,0.06553271,66325.0,66322.0,0.301558]
[1722386235875,0.06553271,66325.0,66323.0,0.150776]
[1722386236076,0.0795,66326.0,66323.0,0.150776]
[1722386236295,0.06538797,66325.0,66322.0,0.150779]
[1722386236501,0.06538797,66325.0,66320.0,0.301564]
[1722386236502,0.06538809,66325.0,66320.0,0.301564]
[1722386236703,0.0795,66326.0,66325.0,0.150772]
[1722386236909,0.06552507,66326.0,66324.0,0.150774]
[1722386237115,0.06552507,66325.0,66323.0,0.008]
[1722386237320,0.21629707,66325.0,66323.0,0.008]
[1722386237526,0.21629707,66325.0,66321.0,0.150781]
[1722386237527,0.06552507,66324.0,66321.0,0.150781]
[1722386237724,0.06552507,66324.0,66322.0,0.0015542]
[1722386237928,0.0676363,66326.0,66325.0,0.007]
[1722386238128,0.13294581,66326.0,66325.0,0.007]
[1722386238304,0.14750276,66326.0,66325.0,0.007]
[1722386238711,0.23063646,66326.0,66325.0,0.007]
[1722386238888,0.14753817,66326.0,66325.0,0.007]
[1722386239095,0.07971935,66326.0,66322.0,0.301558]
[1722386239297,0.0822327,66326.0,66325.0,0.150772]
[1722386239496,0.07972049,66326.0,66324.0,0.150774]
[1722386239695,0.01455695,66326.0,66324.0,0.150774]
[1722386240543,0.05967682,66326.0,66325.0,0.014]
[1722386240718,0.05967682,66326.0,66322.0,0.0015542]
[1722386240719,0.06050682,66326.0,66322.0,0.0015542]
[1722386240924,0.06050682,66326.0,66323.0,0.150776]
[1722386241208,0.01538695,66326.0,66324.0,0.014]
[1722386241493,0.01538695,66326.0,66323.0,0.150776]
[1722386241494,0.06051156,66326.0,66323.0,0.150776]
[1722386241697,0.01538695,66326.0,66325.0,0.014]
[1722386241903,0.25421667,66326.0,66325.0,0.014]
[1722386242048,0.25421667,66326.0,66322.0,0.0085542]
[1722386242049,0.150777,66323.0,66322.0,0.007]
[1722386242256,0.150777,66323.0,66319.0,0.1523392]
[1722386242459,0.13254644,66322.0,66319.0,0.1523392]
[1722386242693,0.06768894,66322.0,66319.0,0.150785]
[1722386242870,0.08217025,66321.0,66319.0,0.150785]
[1722386243093,0.01448131,66321.0,66319.0,0.150785]
[1722386243293,0.08217025,66321.0,66320.0,0.0015542]
[1722386243492,0.08217025,66321.0,66319.0,0.150785]
[1722386243493,0.01448131,66321.0,66319.0,0.150785]
[1722386243696,0.06769275,66322.0,66320.0,0.0015542]
[1722386243895,0.06769275,66322.0,66319.0,0.150785]
[1722386243896,0.0144771,66320.0,66319.0,0.150785]
[1722386244128,0.1354,66320.0,66319.0,0.012]
[1722386244270,1.04525629,66320.0,66319.0,0.012]
[1722386244472,1.34406729,66320.0,66319.0,0.012]
[1722386244786,1.27031018,66320.0,66319.0,0.012]
[1722386244985,0.66717418,66320.0,66319.0,0.012]
[1722386245188,0.23020618,66320.0,66319.0,0.026]
[1722386245385,0.1696766,66320.0,66319.0,0.014]
[1722386245568,0.1696766,66320.0,66317.0,0.301581]
[1722386245773,0.08199975,66320.0,66316.0,0.301586]
[1722386245973,0.01430494,66320.0,66319.0,0.150786]
[1722386246392,0.01430494,66320.0,66319.0,0.459358]
[1722386246605,0.06769937,66320.0,66319.0,0.007]
[1722386246811,0.23294377,66320.0,66319.0,0.007]
[1722386247183,0.07894363,66320.0,66319.0,0.021]
[1722386247387,0.16920946,66320.0,66319.0,0.021]
[1722386248244,1.08953762,66320.0,66319.0,0.021]
[1722386248456,0.97670533,66320.0,66319.0,0.021]
[1722386249156,0.9122804,66320.0,66319.0,0.021]
[1722386249371,1.27742307,66320.0,66319.0,0.021]
[1722386250265,1.86819107,66320.0,66319.0,0.021]
[1722386250466,1.96498696,66320.0,66319.0,0.021]
[1722386250840,1.97419532,66320.0,66319.0,0.007]
[1722386251241,1.97619532,66320.0,66319.0,0.007]
[1722386251969,1.98133099,66320.0,66319.0,0.001]
[1722386252284,1.683365,66315.0,66314.0,0.000913]
[1722386252494,1.822833,66315.0,66314.0,0.000913]
[1722386252810,2.13887077,66315.0,66314.0,0.000913]
[1722386253014,2.23887077,66315.0,66314.0,0.000913]
[1722386253819,2.33644281,66315.0,66314.0,0.000913]
[1722386254020,1.96409565,66315.0,66314.0,0.000913]
[1722386254282,1.96809565,66315.0,66314.0,0.000913]
[1722386254678,1.77889565,66315.0,66314.0,0.000913]
[1722386254789,1.38673361,66315.0,66314.0,0.001913]
[1722386255001,1.52186275,66315.0,66314.0,0.001913]
[1722386255197,1.38373361,66315.0,66314.0,0.001913]
[1722386255447,0.95752277,66315.0,66314.0,0.001913]
[1722386255647,1.03343288,66315.0,66314.0,0.002913]
[1722386255854,0.96952277,66315.0,66314.0,0.002913]
[1722386256052,1.0216774,66315.0,66314.0,0.001913]
[1722386256500,0.6489874,66315.0,66314.0,0.001913]
[1722386256698,0.6489874,66315.0,66314.0,0.000913]
[1722386256699,0.60953411,66315.0,66314.0,0.000913]
[1722386256912,0.8395774,66315.0,66314.0,0.001913]
[1722386257112,0.8395774,66315.0,66314.0,0.000913]
[1722386257313,0.91612276,66315.0,66314.0,0.000913]
[1722386257654,0.92012276,66315.0,66314.0,0.000913]
[1722386257763,0.91312276,66315.0,66314.0,0.000913]
[1722386257978,0.90912276,66315.0,66314.0,0.000913]
[1722386258189,0.90912276,66315.0,66314.0,0.005913]